bitfinex-derivatives/quotes_ETHF0:USTF0_20251204
["timestamp","ask_amount","ask_price","bid_price","bid_amount"]
[1764848763823,0.71245187,3181.0,3180.9,1.64427]
[1764848764120,1.43735187,3181.0,3180.9,1.64427]
[1764848764622,0.00745187,3181.0,3180.9,1.64427]
[1764848767616,0.71245187,3181.0,3180.9,1.64427]
[1764848767818,0.00745187,3181.0,3180.9,1.64427]
[1764848771019,0.00745187,3181.0,3180.8,3.2078]
[1764848771020,1.4299,3180.9,3180.8,3.9525]
[1764848771218,1.4299,3180.6,3180.5,1.9735]
[1764848772312,0.705,3180.6,3180.5,1.9735]
[1764848772717,0.43655187,3181.0,3180.9,0.7447]
[1764848772922,1.86645187,3181.0,3180.9,1.5146]
[1764848773113,1.86645187,3181.0,3180.9,0.7447]
[1764848773616,0.00745187,3181.0,3180.9,1.5146]
[1764848775323,0.00745187,3181.0,3180.9,1.67177]
[1764848778329,3.2078,3181.5,3181.4,1.5146]
[1764848778524,3.97555956,3181.5,3181.4,1.5146]
[1764848779429,4.6830927,3181.5,3181.4,1.5146]
[1764848779912,3.21033314,3181.5,3181.4,1.5146]
[1764848780328,3.91533314,3181.5,3181.4,1.5146]
[1764848780524,3.21033314,3181.5,3181.4,1.5146]
[1764848782426,0.00253314,3181.5,3181.4,1.67175]
[1764848788325,0.00253314,3181.5,3181.4,3.1205483]
[1764848790029,0.00471467,3181.8,3181.7,1.67173]
[1764848790230,0.00471467,3181.8,3181.7,6.3283283]
[1764848790931,0.00838937,3181.8,3181.7,6.3283283]
[1764848791330,0.00838937,3181.8,3181.7,4.87953]
[1764848791531,0.71338937,3181.8,3181.7,4.87953]
[1764848794019,0.00838937,3181.8,3181.7,4.87953]
[1764848796332,0.73488937,3181.8,3181.7,4.87953]
[1764848796521,1.47298937,3181.8,3181.7,0.90183]
[1764848796726,1.47298937,3181.8,3181.7,0.15713]
[1764848797127,1.47298937,3181.8,3181.7,0.89923]
[1764848800135,1.47298937,3181.8,3181.2,3.2078]
[1764848800435,1.4646,3180.9,3180.8,3.2078]
[1764848800632,1.4646,3180.6,3180.5,2.12529]
[1764848801827,1.4646,3180.6,3180.5,1.66639]
[1764848802337,1.4646,3180.6,3180.5,2.09709]
[1764848802535,0.7265,3180.6,3180.5,2.09709]
[1764848803939,1.4683,3180.6,3180.5,2.09709]
[1764848805347,1.459,3180.4,3180.3,0.72511467]
[1764848806445,1.459,3180.4,3180.3,1.44041467]
[1764848808735,1.459,3180.4,3180.3,0.72511467]
[1764848808937,1.459,3180.4,3180.3,1.44041467]
[1764848809137,0.7172,3180.4,3180.3,1.4357]
[1764848809531,1.459,3180.4,3180.3,1.4357]
[1764848809740,4.6668,3180.6,3180.5,1.4357]
[1764848809946,4.6668,3180.6,3180.0,3.79571]
[1764848810147,4.6668,3180.6,3180.0,3.80042467]
[1764848810336,42.6896,3180.5,3180.4,0.7204]
[1764848810836,1.8896,3180.5,3180.4,0.7204]
[1764848811446,1.459,3180.5,3180.4,1.4357]
[1764848811636,0.7172,3180.5,3180.4,1.4357]
[1764848811832,0.7172,3180.5,3180.3,0.1572]
[1764848811833,3.2078,3180.6,3180.5,1.8664]
[1764848813247,1.459,3181.0,3180.9,1.4357]
[1764848813548,1.459,3181.0,3180.9,0.7204]
[1764848815751,1.459,3180.7,3180.6,1.59288]
[1764848815942,1.459,3181.0,3180.6,1.4487983]
[1764848816253,0.7172,3181.0,3180.9,1.4357]
[1764848816442,1.459,3181.0,3180.9,1.4357]
[1764848819150,3.925,3181.5,3181.4,1.4357]
[1764848819450,4.6668,3181.5,3181.4,1.4357]
[1764848820047,3.925,3181.5,3181.4,1.4357]
[1764848820249,0.00838937,3181.8,3181.7,1.4357]
[1764848820446,0.72558937,3181.8,3181.7,1.4357]
[1764848820648,1.46738937,3181.8,3181.7,1.4357]
[1764848821149,0.00838937,3181.8,3181.7,1.4357]
[1764848821651,0.00838937,3181.8,3181.5,0.4307]
[1764848821652,1.46738937,3181.8,3181.5,0.4307]
[1764848821847,0.72558937,3181.8,3181.7,1.4357]
[1764848822648,0.00838937,3181.8,3181.7,1.4357]
[1764848824355,0.00838937,3181.8,3181.5,0.58784]
[1764848824356,3.2078,3182.3,3182.2,1.4457]
[1764848824747,4.6935,3182.7,3182.6,1.4457]
[1764848825447,4.69686976,3182.7,3182.6,0.73916116]
[1764848827765,4.69686976,3182.7,3182.6,1.44896116]
[1764848828258,3.95526976,3182.7,3182.6,1.44896116]
[1764848829460,4.69686976,3182.7,3182.6,1.44896116]
[1764848830562,4.69686976,3182.7,3182.6,0.73916116]
[1764848831761,4.69686976,3182.7,3182.6,1.44896116]
[1764848836966,4.69686976,3182.7,3182.6,0.73916116]
[1764848837468,4.69686976,3182.7,3182.6,1.44896116]
[1764848837769,4.69686976,3182.7,3182.6,0.73916116]
[1764848838066,4.69686976,3182.7,3182.6,1.44896116]
[1764848838764,4.69686976,3182.7,3182.6,0.73916116]
[1764848839067,4.69686976,3182.7,3182.6,0.00326116]
[1764848839268,6.14566806,3182.7,3182.6,0.00326116]
[1764848839666,4.69686976,3182.7,3182.6,0.00326116]
[1764848840464,6.14566806,3182.7,3182.6,0.00326116]
[1764848840761,6.14566806,3182.7,3181.0,3.20918899]
[1764848840762,1.4857,3181.5,3181.4,4.6535]
[1764848840957,1.4857,3181.5,3181.4,3.9437]
[1764848841164,3.3678983,3181.5,3181.4,3.2078]
[1764848841470,1.9191,3181.5,3181.4,3.2078]
[1764848841661,1.9191,3181.5,3181.4,3.21091866]
[1764848841862,1.9191,3181.5,3181.4,3.94681866]
[1764848842468,1.9191,3181.5,3181.4,4.65661866]
[1764848844869,0.7441,3181.5,3181.4,4.81376866]
[1764848845164,40.8,3181.7,3181.6,1.4457]
[1764848845368,4.6935,3182.1,3182.0,0.7359]
[1764848845559,6.1422983,3182.1,3181.5,0.58764]
[1764848845867,1.4857,3181.6,3181.5,2.03334]
[1764848846269,0.7441,3181.6,3181.5,2.03334]
[1764848847872,1.8942,3182.0,3181.5,0.58764]
[1764848848072,1.8942,3182.0,3181.6,0.15714]
[1764848848268,1.8942,3182.0,3181.9,0.7359]
[1764848849166,1.4857,3181.7,3181.6,0.15714]
[1764848849367,1.4857,3181.7,3181.6,0.89304]
[1764848852474,1.4857,3181.7,3181.6,1.60284]
[1764848852674,0.7441,3181.7,3181.6,1.60284]
[1764848853778,1.4857,3181.7,3181.6,1.60284]
[1764848856679,0.7441,3181.7,3181.6,1.60284]
[1764848857181,1.5057,3182.0,3181.9,0.736]
[1764848857381,1.5057,3182.0,3181.9,1.4988]
[1764848858379,1.5057,3182.0,3181.9,0.7628]
[1764848858788,1.5057,3182.0,3181.9,1.4988]
[1764848859383,1.5057,3182.0,3181.9,0.7628]
[1764848859682,1.5057,3182.0,3181.9,1.4988]
[1764848860683,0.7333,3182.0,3181.9,1.4988]
[1764848860876,0.7333,3182.0,3181.9,1.65592]
[1764848861073,1.5057,3182.0,3181.9,1.65592]
[1764848861479,1.5057,3182.0,3181.9,0.91992]
[1764848862692,1.9091,3181.5,3181.4,0.00311866]
[1764848863386,1.9091,3181.5,3181.4,0.72361866]
[1764848865787,1.455,3181.5,3181.4,1.48841866]
[1764848867085,1.455,3181.5,3181.4,0.72361866]
[1764848867682,1.9091,3181.5,3181.4,0.72361866]
[1764848868088,1.9091,3181.5,3181.4,0.00311866]
[1764848870589,1.9091,3181.5,3181.4,0.72361866]
[1764848873099,1.455,3181.5,3181.4,1.48841866]
[1764848873691,4.6628,3181.7,3181.6,1.4853]
[1764848873898,4.6628,3182.1,3182.0,0.7205]
[1764848874195,5.42867113,3182.1,3182.0,1.4853]
[1764848874390,4.6628,3182.5,3182.4,0.7205]
[1764848874690,5.0611,3182.5,3182.4,0.7205]
[1764848874891,1.455,3182.2,3182.1,1.64241]
[1764848877194,0.7413,3182.2,3182.1,1.64241]
[1764848878698,5.0611,3182.5,3182.4,1.4853]
[1764848878898,5.0611,3182.5,3182.4,0.7205]
[1764848879093,1.455,3182.3,3182.2,1.64241]
[1764848881996,3.9491,3182.5,3182.4,1.4853]
[1764848882196,0.00336976,3182.7,3182.6,1.4853]
[1764848882909,1.45836976,3182.7,3182.6,0.7205]
[1764848883302,1.455,3182.6,3182.5,0.87759]
[1764848883502,1.455,3182.6,3182.5,1.64239]
[1764848884700,1.455,3182.6,3182.5,0.87759]
[1764848884900,1.455,3182.6,3182.5,1.61309]
[1764848885105,1.455,3182.6,3182.5,0.87759]
[1764848887711,1.455,3182.6,3182.5,1.61309]
[1764848887920,1.455,3182.6,3182.5,0.87759]
[1764848889511,1.455,3182.6,3182.5,0.15709]
[1764848890511,0.7413,3182.6,3182.5,2.10159]
[1764848890908,0.76146976,3182.7,3182.6,1.4953]
[1764848891108,1.4975,3182.6,3182.5,1.65239]
[1764848891411,1.4975,3182.6,3182.5,2.10159]
[1764848892014,1.50086976,3182.7,3182.6,1.4953]
[1764848893413,1.50086976,3182.7,3182.6,0.7598]
[1764848893616,1.50086976,3182.7,3182.6,1.4953]
[1764848896717,1.4975,3182.6,3182.5,0.91689]
[1764848897621,1.4975,3182.6,3182.5,1.65239]
[1764848898218,0.00336976,3182.7,3182.6,1.65239]
[1764848898420,0.00471467,3183.0,3182.9,1.65237]
[1764848898615,1.50221467,3183.0,3182.9,1.65237]
[1764848899114,1.79121467,3183.0,3182.9,0.91687]
[1764848899421,1.79352255,3183.0,3182.9,0.15707]
[1764848901114,1.79352255,3183.0,3182.9,1.65237]
[1764848901410,0.00702255,3183.0,3182.9,4.86017]
[1764848902209,0.76512255,3183.0,3182.9,4.86017]
[1764848902410,0.00702255,3183.0,3182.9,4.86017]
[1764848905023,0.76512255,3183.0,3182.9,4.86017]
[1764848906720,1.50452255,3183.0,3182.9,4.86017]
[1764848906922,0.76512255,3183.0,3182.9,4.86017]
[1764848907316,0.00702255,3183.0,3182.9,4.86017]
[1764848907717,4.7053,3183.8,3183.7,1.4953]
[1764848907916,5.46770034,3183.8,3183.7,1.4953]
[1764848908217,45.5053,3183.8,3183.7,0.7598]
[1764848908423,46.2675772,3183.8,3183.7,0.7598]
[1764848908810,46.27034819,3183.8,3183.7,0.00358719]
[1764848909412,45.50807099,3183.8,3183.7,0.00358719]
[1764848909818,45.50807099,3183.8,3183.7,0.76338719]
[1764848910020,45.50807099,3183.8,3183.7,1.49888719]
[1764848911216,4.70807099,3183.8,3183.7,1.65591719]
[1764848914119,1.50027099,3183.8,3183.7,1.65591719]
[1764848914728,1.50027099,3183.8,3183.7,0.92041719]
[1764848915123,1.50027099,3183.8,3183.7,1.69561719]
[1764848916127,0.76087099,3183.8,3183.7,1.69561719]
[1764848917525,0.00277099,3183.8,3183.7,1.69561719]
[1764848917829,0.71867099,3183.8,3183.7,1.69561719]
[1764848918032,0.00277099,3183.8,3183.7,1.69561719]
[1764848919028,0.72061467,3184.1,3184.0,1.9904]
[1764848919421,0.00471467,3184.1,3184.0,2.14742]
[1764848919834,1.47971467,3184.1,3184.0,2.14742]
[1764848920023,1.48286852,3184.1,3184.0,2.14742]
[1764848920436,1.48286852,3184.1,3184.0,1.69662]
[1764848921533,2.93014666,3184.1,3184.0,1.69662]
[1764848926535,0.72376852,3184.1,3184.0,2.13222]
[1764848927042,3.2078,3185.0,3184.4,1.5171]
[1764848927343,3.2078,3185.0,3184.0,3.33015628]
[1764848927344,4.7451,3185.0,3184.9,1.5171]
[1764848927547,0.7745,3184.6,3184.5,1.9527]
[1764848927837,1.5373,3184.6,3184.5,0.7482]
[1764848928047,1.5373,3184.6,3184.5,1.5171]
[1764848928255,1.54041739,3184.6,3184.5,1.5171]
[1764848928454,2.98769553,3184.6,3184.5,1.9527]
[1764848928647,2.98769553,3184.6,3184.5,1.5171]
[1764848928854,2.98769553,3184.6,3184.5,0.7482]
[1764848929251,2.98769553,3184.6,3184.5,1.67409]
[1764848931750,2.98769553,3184.6,3184.5,2.10969]
[1764848931751,0.77761739,3184.6,3184.5,2.10969]
[1764848932957,1.54041739,3184.6,3184.5,2.10969]
[1764848934046,0.77761739,3184.6,3184.5,2.10969]
[1764848934360,0.00311739,3184.6,3184.5,2.10969]
[1764848934559,3.9823,3185.4,3185.3,0.7482]
[1764848934863,1.5373,3185.3,3185.2,0.15696]
[1764848935161,42.3373,3185.3,3185.2,0.15696]
[1764848935657,42.34042178,3185.3,3185.2,1.67406]
[1764848936058,1.54042178,3185.3,3185.2,1.67406]
[1764848936257,0.77762178,3185.3,3185.2,1.67406]
[1764848936554,0.00312178,3185.3,3185.2,1.67406]
[1764848939063,2.9870088,3185.7,3185.6,0.15694]
[1764848942570,2.9870088,3185.7,3185.6,0.90514]
[1764848942760,2.9870088,3185.7,3185.6,0.15694]
[1764848943768,1.8706,3185.0,3184.9,0.71041467]
[1764848944064,1.8706,3185.0,3184.9,0.00471467]
[1764848947267,1.8706,3185.0,3184.9,0.71041467]
[1764848947569,3.2078,3185.1,3185.0,2.07397]
[1764848947570,3.9287,3185.1,3185.0,2.07397]
[1764848948067,4.6432,3185.1,3185.0,2.07397]
[1764848949373,3.2078,3185.1,3185.0,2.07397]
[1764848951672,3.2078,3185.6,3185.0,2.07397]
[1764848952164,0.7209,3185.2,3185.1,1.61956]
[1764848953371,1.4354,3185.2,3185.1,1.61956]
[1764848953762,1.8706,3185.0,3184.9,0.00471467]
[1764848953966,3.31787814,3185.0,3184.9,0.00471467]
[1764848954368,44.11787814,3185.0,3184.9,0.00471467]
[1764848955075,44.11787814,3185.0,3184.9,0.71041467]
[1764848955274,44.11787814,3185.0,3184.9,0.00471467]
[1764848958982,0.4352,3187.5,3186.9,0.15687]
[1764848959182,0.4352,3187.0,3186.9,0.15687]
[1764848959479,0.4352,3187.0,3186.9,3.36467]
[1764848959683,1.8706,3187.0,3186.9,3.36467]
[1764848959876,1.8706,3187.0,3186.9,3.36708129]
[1764848959877,1.15963952,3187.0,3186.9,3.36708129]
[1764848960285,0.43873952,3187.0,3186.9,3.36708129]
[1764848960474,0.00353952,3187.0,3186.9,3.36708129]
[1764848960781,0.4352,3187.5,3187.1,0.15686]
[1764848960984,1.4354,3187.4,3187.3,3.2078]
[1764848961175,1.4354,3187.4,3187.3,4.32984939]
[1764848961373,1.4354,3187.4,3187.3,3.2078]
[1764848961683,1.4379116,3187.4,3187.3,4.32984939]
[1764848961881,0.7234116,3187.4,3187.3,4.32984939]
[1764848962186,1.4354,3187.4,3187.3,4.48669939]
[1764848962383,1.4354,3187.4,3187.3,3.36465]
[1764848962887,1.8706,3187.0,3186.9,0.00241129]
[1764848963380,1.8732851,3187.0,3186.9,0.00241129]
[1764848965084,1.1587851,3187.0,3186.9,0.00241129]
[1764848965887,1.8732851,3187.0,3186.9,0.00241129]
[1764848967684,1.4354,3186.9,3186.8,3.2078]
[1764848968791,1.4354,3186.9,3186.8,3.21067782]
[1764848970888,1.4354,3186.9,3186.8,0.00287782]
[1764848971487,1.4354,3186.8,3186.6,0.00470633]
[1764848971793,1.4354,3186.7,3186.6,0.00470633]
[1764848972494,1.4354,3186.7,3186.6,0.00719633]
[1764848982595,40.8,3186.9,3186.6,0.00719633]
[1764848982895,0.4378851,3187.0,3186.6,0.00719633]
[1764848983100,2.863,3186.7,3186.6,0.00719633]
[1764848984998,2.863,3186.4,3186.3,0.1569]
[1764848985803,2.863,3186.4,3186.3,1.27927316]
[1764848986004,2.863,3186.4,3186.3,1.28269433]
[1764848986403,2.863,3186.4,3186.3,0.16032117]
[1764848987200,2.3141,3186.5,3186.3,0.16032117]
[1764848987401,2.3141,3186.5,3186.3,1.84317337]
[1764848987800,0.8588,3186.5,3186.4,1.8397522]
[1764848988201,2.3141,3186.5,3186.4,1.8397522]
[1764848988510,3.7218,3186.5,3186.4,0.1569]
[1764848989108,3.7218,3186.5,3186.4,1.84614326]
[1764848990405,3.7218,3186.5,3186.4,0.1569]
[1764849006926,0.8588,3186.5,3186.4,0.1569]
[1764849008018,3.8643,3186.5,3186.4,0.1569]
[1764849011011,0.8588,3186.5,3186.4,0.1569]
[1764849011821,0.8588,3186.5,3186.4,2.93538899]
[1764849012025,0.8588,3186.5,3186.4,0.1569]
[1764849013426,2.3685,3186.5,3186.4,0.1569]
[1764849013726,0.8588,3186.5,3186.4,0.1569]
[1764849014233,0.8588,3186.5,3186.4,2.97473924]
[1764849014717,2.3685,3186.5,3186.4,2.97473924]
[1764849015719,3.8643,3186.5,3186.4,2.97473924]
[1764849015926,3.0055,3186.4,3186.3,0.00342117]
[1764849017228,2.3685,3186.5,3186.3,0.00342117]
[1764849017434,3.8643,3186.5,3186.4,1.56541965]
[1764849018729,2.3685,3186.5,3186.4,1.56541965]
[1764849019027,3.8643,3186.5,3186.4,1.56541965]
[1764849021735,0.8588,3186.5,3186.4,1.56541965]
[1764849022028,3.8643,3186.5,3186.4,0.1569]
[1764849022327,3.8643,3186.5,3186.0,0.00470633]
[1764849022328,3.0055,3185.4,3185.3,3.36475]
[1764849022631,3.0145,3185.4,3185.3,3.36475]
[1764849023429,3.0145,3185.4,3184.5,0.6234]
[1764849023430,3.0055,3185.3,3185.2,1.36810285]
[1764849023621,3.0055,3185.1,3185.0,0.16167633]
[1764849023923,6.2223,3185.1,3185.0,0.00470633]
[1764849024529,6.2223,3185.1,3185.0,0.00873652]
[1764849026422,6.2223,3185.1,3184.4,0.157]
[1764849026627,3.486,3184.5,3184.4,0.157]
[1764849026826,3.486,3184.5,3184.4,1.6412]
[1764849027425,3.486,3184.5,3184.4,3.1348]
[1764849027632,3.48980171,3184.5,3184.4,3.1377481]
[1764849028134,3.00930171,3184.5,3184.4,3.1377481]
[1764849029835,3.85920171,3184.5,3184.4,1.6441481]
[1764849030034,3.85920171,3184.5,3184.4,0.1599481]
[1764849031434,3.85920171,3184.5,3184.4,1.6441481]
[1764849031735,3.00930171,3184.5,3184.4,3.1377481]
[1764849033336,3.01830171,3184.5,3184.4,3.1377481]
[1764849034630,0.01280171,3184.5,3184.4,3.1377481]
[1764849034827,1.33740171,3184.5,3184.4,3.1377481]
[1764849036638,2.74610171,3184.5,3184.4,3.1377481]
[1764849037543,1.33740171,3184.5,3184.4,3.1377481]
[1764849037732,0.01280171,3184.5,3184.4,3.1377481]
[1764849037931,1.33740171,3184.5,3184.4,3.1377481]
[1764849038532,0.01280171,3184.5,3184.4,3.1377481]
[1764849038736,1.33740171,3184.5,3184.4,3.1377481]
[1764849039744,0.01280171,3184.5,3184.4,3.1377481]
[1764849041145,0.01280171,3184.5,3184.4,6.3455481]
[1764849043248,3.33060171,3184.5,3184.4,6.3455481]
[1764849044044,1.69520171,3184.5,3184.4,6.3455481]
[1764849044255,0.01280171,3184.5,3184.4,6.3455481]
[1764849044859,1.69520171,3184.5,3184.4,6.3455481]
[1764849046362,3.33060171,3184.5,3184.4,7.79164482]
[1764849046861,1.69520171,3184.5,3184.4,7.79164482]
[1764849047162,3.33060171,3184.5,3184.4,7.79164482]
[1764849048156,1.69520171,3184.5,3184.4,7.79164482]
[1764849048666,0.01280171,3184.5,3184.4,7.79164482]
[1764849049464,3.2078,3185.6,3184.7,3.3375]
[1764849049759,1.6824,3185.3,3185.2,4.94055672]
[1764849049964,6.5256,3185.6,3185.5,3.49444]
[1764849050566,6.52800378,3185.6,3185.5,1.81254]
[1764849051062,6.52800378,3185.6,3185.5,0.15694]
[1764849053867,6.52800378,3185.6,3185.5,1.81254]
[1764849054258,6.52800378,3185.6,3185.5,3.49444]
[1764849054769,6.52800378,3185.6,3185.5,1.81254]
[1764849054965,6.52800378,3185.6,3185.5,0.15694]
[1764849055768,6.52800378,3185.6,3185.5,1.81254]
[1764849056662,6.52800378,3185.6,3185.5,0.15694]
[1764849056862,6.52800378,3185.6,3185.5,1.81254]
[1764849057063,6.52800378,3185.6,3185.5,0.15694]
[1764849058965,3.3178,3185.1,3185.0,5.45531698]
[1764849059162,3.3178,3185.1,3185.0,5.61228698]
[1764849059367,3.3178,3185.1,3185.0,0.15697]
[1764849062767,3.3178,3184.7,3184.6,2.24751698]
[1764849062969,3.3178,3184.6,3184.5,3.36479]
[1764849064172,3.3178,3184.6,3184.5,6.68819]
[1764849066774,3.3178,3184.6,3184.5,3.48039]
[1764849067173,3.3178,3184.6,3184.5,0.15699]
[1764849067479,3.3178,3184.6,3184.5,1.88239]
[1764849068274,3.3178,3184.6,3184.5,3.55019]
[1764849068775,3.3178,3184.6,3184.5,4.48809]
[1764849068978,3.4429,3184.8,3184.7,3.55018]
[1764849069886,1.7568,3185.3,3185.2,3.3932]
[1764849070075,3.4429,3185.3,3185.2,3.3932]
[1764849070278,3.4429,3185.3,3185.2,1.7254]
[1764849070472,3.4429,3185.1,3185.0,4.48807]
[1764849070877,3.4429,3185.1,3185.0,3.55017]
[1764849071983,1.6861,3185.1,3185.0,4.48807]
[1764849072682,3.4429,3185.1,3185.0,4.48807]
[1764849074392,3.4429,3185.1,3185.0,5.93363885]
[1764849075383,1.6861,3185.1,3185.0,5.93363885]
[1764849076589,3.4429,3185.5,3185.4,1.6678]
[1764849076790,3.4429,3185.5,3185.4,3.3932]
[1764849078193,3.4429,3185.5,3185.4,3.55015]
[1764849078490,1.6861,3185.5,3185.4,3.55015]
[1764849079094,3.21020378,3185.6,3185.5,4.48804]
[1764849079291,0.00240378,3185.6,3185.5,4.48804]
[1764849079494,3.44530378,3185.6,3185.5,1.88234]
[1764849079898,3.44530378,3185.6,3185.5,3.55014]
[1764849082398,1.68850378,3185.6,3185.5,4.48804]
[1764849082593,0.00240378,3185.6,3185.5,4.48804]
[1764849082902,3.44530378,3185.6,3185.5,1.88234]
[1764849083105,3.44530378,3185.6,3185.5,3.55014]
[1764849083489,3.44530378,3185.6,3185.5,4.48804]
[1764849084191,0.00240378,3185.6,3185.5,4.48804]
[1764849087093,0.00240378,3185.6,3185.5,8.18112583]
[1764849088107,0.00240378,3185.6,3185.5,5.93360885]
[1764849088998,3.44530378,3185.6,3185.5,4.99570885]
[1764849089598,1.68850378,3185.6,3185.5,5.93360885]
[1764849090204,3.44530378,3185.6,3185.5,5.93360885]
[1764849090505,3.44530378,3185.6,3185.5,0.15694]
[1764849095911,3.44530378,3185.6,3185.5,3.40384]
[1764849096304,3.44530378,3185.6,3185.5,1.88234]
[1764849096800,3.44530378,3185.6,3185.5,3.40384]
[1764849097506,3.44530378,3185.6,3185.5,1.88234]
[1764849098112,3.44530378,3185.6,3185.5,3.40384]
[1764849099910,3.9851,3186.0,3185.9,0.15692]
[1764849100705,7.1929,3186.0,3185.9,0.15692]
[1764849100905,7.19613858,3186.0,3185.9,0.15692]
[1764849110122,2.7682,3185.6,3185.5,2.24751698]
[1764849110314,2.7682,3185.6,3185.5,3.67071698]
[1764849110514,2.7682,3185.6,3185.5,5.24645698]
[1764849110715,2.7682,3185.6,3185.5,3.82765698]
[1764849111422,2.7682,3185.6,3185.5,5.24645698]
[1764849111920,2.7682,3185.6,3185.5,3.82765698]
[1764849112117,2.7682,3185.6,3185.5,5.24645698]
[1764849114521,2.7682,3185.6,3185.5,3.82765698]
[1764849114921,2.7682,3185.6,3185.5,5.24645698]
[1764849115219,5.97923858,3186.0,3185.9,2.842]
[1764849115620,4.60153858,3186.0,3185.9,2.842]
[1764849115822,6.83993858,3186.0,3185.9,1.4232]
[1764849116018,2.7682,3185.9,3185.8,1.58013]
[1764849116209,2.7682,3185.9,3185.8,0.15693]
[1764849118823,2.7682,3185.9,3185.8,1.58013]
[1764849119016,2.7682,3185.9,3185.8,0.15693]
[1764849121324,2.7682,3185.9,3185.8,1.58013]
[1764849121726,2.7682,3185.9,3185.8,0.15693]
[1764849121929,2.7682,3185.9,3185.8,1.58013]
[1764849122827,2.7682,3185.9,3185.8,2.99893]
[1764849123628,2.7682,3185.9,3185.8,0.15693]
[1764849126429,1.46173858,3186.0,3185.9,2.81402]
[1764849127530,2.78883858,3186.0,3185.9,2.81402]
[1764849128328,2.78883858,3186.0,3185.9,5.07218557]
[1764849132832,2.78883858,3186.0,3185.9,2.81402]
[1764849135833,3.40033858,3186.0,3185.9,0.15692]
[1764849136038,6.60813858,3186.0,3185.9,0.15692]
[1764849137941,3.40033858,3186.0,3185.9,0.15692]
[1764849147451,6.60813858,3186.0,3185.9,0.15692]
[1764849147754,3.40033858,3186.0,3185.9,0.15692]
[1764849147957,6.60813858,3186.0,3185.9,0.15692]
[1764849150353,3.40033858,3186.0,3185.9,0.15692]
[1764849150558,6.60813858,3186.0,3185.9,0.15692]
[1764849157160,3.40033858,3186.0,3185.9,0.15692]
[1764849160467,3.40033858,3186.0,3185.9,2.64532]
[1764849160468,1.46173858,3186.0,3185.9,2.64532]
[1764849161365,2.37353858,3186.0,3185.9,2.64532]
[1764849162960,1.19393858,3186.0,3185.9,2.64532]
[1764849163161,2.37353858,3186.0,3185.9,2.64532]
[1764849164068,1.19393858,3186.0,3185.9,2.64532]
[1764849165968,2.37353858,3186.0,3185.9,2.64532]
[1764849166970,1.19393858,3186.0,3185.9,2.64532]
[1764849167775,2.37353858,3186.0,3185.9,2.64532]
[1764849168973,2.60363858,3186.0,3185.9,0.15692]
[1764849169376,2.60363858,3186.0,3185.9,1.26832]
[1764849170176,2.60363858,3186.0,3185.9,2.36942]
[1764849171677,2.37353858,3186.0,3185.9,2.36942]
[1764849174281,2.59373858,3186.0,3185.9,1.26832]
[1764849174778,0.00323858,3186.0,3185.9,2.36942]
[1764849176079,1.19393858,3186.0,3185.9,2.36942]
[1764849177379,0.00323858,3186.0,3185.9,2.36942]
[1764849177580,1.19393858,3186.0,3185.9,2.36942]
[1764849177774,0.00323858,3186.0,3185.9,2.36942]
[1764849179676,4.3985,3186.7,3186.6,1.1114]
[1764849179882,5.5781,3186.7,3186.6,2.2125]
[1764849180275,40.8,3186.9,3186.8,2.2125]
[1764849180481,1.1907,3186.9,3186.8,2.36938]
[1764849180682,2.37251154,3186.9,3186.8,2.37309048]
[1764849180877,2.37251154,3186.9,3186.8,1.27199048]
[1764849181577,2.37251154,3186.9,3186.8,0.16059048]
[1764849181775,2.37251154,3186.9,3186.8,1.27199048]
[1764849182485,0.00221154,3186.9,3186.8,2.37309048]
[1764849182683,1.19291154,3186.9,3186.8,2.37309048]
[1764849183377,0.00221154,3186.9,3186.8,2.37309048]
[1764849183680,2.3086,3187.5,3187.4,2.2125]
[1764849183882,2.3086,3187.5,3187.4,2.36935]
[1764849184376,2.8714,3187.5,3187.4,1.26825]
[1764849184584,2.87388505,3187.5,3187.4,1.26825]
[1764849185185,2.87388505,3187.5,3187.4,0.15685]
[1764849187087,2.87388505,3187.5,3187.4,1.26345]
[1764849187287,2.87388505,3187.5,3187.4,0.15685]
[1764849188383,1.16018505,3187.5,3187.4,0.15685]
[1764849188588,0.00248505,3187.5,3187.4,2.43945]
[1764849188787,2.31108505,3187.5,3187.4,2.43945]
[1764849188987,2.87388505,3187.5,3187.4,2.43945]
[1764849189188,2.87388505,3187.5,3187.4,1.26345]
[1764849189782,2.87388505,3187.5,3187.4,0.15685]
[1764849190586,4.31915014,3187.5,3187.4,0.15685]
[1764849194995,2.87388505,3187.5,3187.4,0.15685]
[1764849195999,2.3086,3186.9,3186.8,0.16059048]
[1764849196395,2.3086,3186.9,3186.8,1.26719048]
[1764849196598,2.3086,3186.9,3186.8,2.44319048]
[1764849200690,1.1577,3186.9,3186.8,2.44319048]
[1764849200888,2.3086,3186.9,3186.8,2.44319048]
[1764849201389,1.1577,3186.9,3186.8,2.44319048]
[1764849202797,2.3086,3186.9,3186.8,2.44319048]
[1764849203002,2.31108505,3187.5,3187.4,2.2826]
[1764849203196,2.31108505,3187.5,3187.2,0.15686]
[1764849203197,2.3086,3187.3,3187.2,1.26346]
[1764849203802,2.3086,3187.3,3187.2,2.43946]
[1764849204001,1.1577,3187.3,3187.2,2.43946]
[1764849204203,2.3086,3187.3,3187.2,2.43946]
[1764849205697,1.1577,3187.3,3187.2,2.43946]
[1764849206703,2.3086,3187.3,3187.2,2.43946]
[1764849207403,2.3086,3187.3,3187.2,0.15686]
[1764849207708,3.75386509,3187.3,3187.2,0.15686]
[1764849208903,3.75386509,3187.3,3187.2,1.26346]
[1764849209708,3.75386509,3187.3,3187.2,0.15686]
[1764849210008,3.75386509,3187.3,3187.2,1.26346]
[1764849211211,3.75386509,3187.3,3187.2,2.43946]
[1764849211409,2.3086,3187.3,3187.2,2.43946]
[1764849213809,1.1577,3187.3,3187.2,2.43946]
[1764849214214,2.1987,3187.3,3187.2,2.43946]
[1764849214609,1.1577,3187.3,3187.2,2.43946]
[1764849214809,2.1987,3187.3,3187.2,0.15686]
[1764849215010,3.64396509,3187.3,3187.2,0.15686]